bitfinex/quotes_SOLUSD_20250129
["timestamp","ask_amount","ask_price","bid_price","bid_amount"]
[1738164899817,0.37647,228.39,228.3,0.43789964]
[1738164900316,2.12777,228.39,228.3,0.43789964]
[1738164900616,2.12777,228.39,228.29,143.9603]
[1738164900810,0.37647,228.35,228.29,136.4]
[1738164901028,12.66941687,228.33,228.29,136.4]
[1738164901385,12.66941687,228.31,228.29,136.4]
[1738164901618,1.752,228.3,228.24,219.53]
[1738164901815,12.66941687,228.29,228.24,219.53]
[1738164902018,0.37647,228.28,228.24,136.43]
[1738164902313,12.66941687,228.31,228.24,140.8113]
[1738164902515,12.66941687,228.33,228.24,136.43]
[1738164902697,0.37647,228.32,228.24,136.43]
[1738164903034,0.37647,228.3,228.24,136.43]
[1738164903400,0.37647,228.28,228.24,136.43]
[1738164903789,0.37647,228.26,228.24,0.03]
[1738164904002,13.04588687,228.25,228.24,0.03]
[1738164904897,36.82277087,228.25,228.24,0.03]
[1738164905292,13.04588687,228.25,228.24,0.03]
[1738164905507,0.37647,228.25,228.24,0.03]
[1738164905816,22.12887,228.25,228.24,0.03]
[1738164906203,0.37647,228.25,228.24,0.03]
[1738164906604,2.12887,228.25,228.24,0.03]
[1738164907101,1.7519,228.32,228.24,136.43]
[1738164907413,12.66941687,228.33,228.24,136.43]
[1738164907598,0.12549,228.3,228.24,136.43]
[1738164908512,0.12549,228.31,228.24,136.43]
[1738164908719,12.79490687,228.31,228.24,136.43]
[1738164909215,0.25098,228.3,228.24,136.43]
[1738164909408,12.66941687,228.27,228.24,136.43]
[1738164909610,12.66941687,228.27,228.24,0.03]
[1738164909809,0.37647,228.28,228.24,0.03]
[1738164910519,2.12867,228.28,228.24,0.03]
[1738164910722,0.12549,228.28,228.24,0.03]
[1738164910926,1.87769,228.28,228.24,0.03]
[1738164911103,0.12549,228.26,228.24,0.03]
[1738164911300,56.57179087,228.25,228.24,0.03]
[1738164911511,69.49218774,228.25,228.24,0.03]
[1738164911820,56.82277087,228.25,228.24,0.03]
[1738164912820,58.57517087,228.25,228.24,0.03]
[1738164914842,0.12549,228.25,228.24,0.03]
[1738164915003,12.66941687,228.29,228.24,0.03]
[1738164915202,0.37647,228.26,228.24,0.03]
[1738164915504,36.82277087,228.25,228.24,0.03]
[1738164916827,38.57517087,228.25,228.24,0.03]
[1738164922344,14.79828687,228.25,228.24,0.03]
[1738164922554,1.7521,228.3,228.24,0.03]
[1738164922847,1.7517,228.34,228.24,136.43]
[1738164923034,1.7517,228.34,228.24,219.53]
[1738164923223,36.82277087,228.33,228.24,219.53]
[1738164924416,13.04588687,228.31,228.24,219.53]
[1738164924627,0.25098,228.31,228.24,219.53]
[1738164924836,0.25098,228.31,228.24,223.9111]
[1738164925623,0.25098,228.31,228.24,219.53]
[1738164926153,12.66941687,228.33,228.25,0.43806068]
[1738164926318,1.7517,228.34,228.26,4.3809]
[1738164926725,0.25098,228.33,228.26,4.3809]
[1738164928346,0.063,228.35,228.26,223.8809]
[1738164928547,0.063,228.35,228.3,1.6664]
[1738164928759,0.063,228.35,228.31,0.43786539]
[1738164928922,0.063,228.35,228.32,9.2009]
[1738164929125,0.063,228.35,228.34,30.0]
[1738164929333,0.063,228.35,228.34,249.5]
[1738164930766,0.063,228.35,228.34,253.8794]
[1738164930931,0.03,228.43,228.37,50.0]
[1738164931134,0.03,228.43,228.37,269.93771525]
[1738164931363,0.03,228.43,228.37,269.5]
[1738164932859,0.03,228.43,228.37,273.8788]
[1738164934761,0.03,228.43,228.37,275.5017]
[1738164936025,0.03,228.43,228.42,30.0]
[1738164936230,0.03,228.43,228.42,249.5]
[1738164936849,0.03,228.43,228.42,219.5]
[1738164937249,0.03,228.43,228.42,253.8779]
[1738164937452,0.03,228.43,228.42,260.2823]
[1738164937655,0.03,228.46,228.45,50.0]
[1738164937844,0.03,228.47,228.46,1.624]
[1738164938840,0.03,228.47,228.46,318.0011]
[1738164939050,0.03,228.47,228.46,6.0011]
[1738164939250,0.03,228.47,228.46,6.43862629]
[1738164940140,0.03,228.47,228.46,9.61862629]
[1738164940742,0.03,228.57,228.46,9.61862629]
[1738164940743,14.19911687,228.61,228.51,20.0]
[1738164940952,12.66941687,228.63,228.53,4.3757]
[1738164941131,12.66941687,228.64,228.54,0.43745891]
[1738164941537,12.66941687,228.65,228.54,249.93745891]
[1738164941841,1.87489,228.64,228.54,219.5]
[1738164942837,12.85790687,228.62,228.54,219.5]
[1738164943141,0.18849,228.62,228.54,223.8754]
[1738164943341,0.18849,228.62,228.55,0.4374405]
[1738164944159,0.25098,228.59,228.54,219.5]
[1738164944365,12.66941687,228.57,228.5,3.18]
[1738164945245,14.41941687,228.57,228.5,3.18]
[1738164945451,12.66941687,228.56,228.5,139.58]
[1738164946651,12.66941687,228.57,228.5,143.9563]
[1738164947552,2.00078,228.59,228.51,0.43753257]
[1738164947952,12.66941687,228.6,228.51,0.43753257]
[1738164948354,12.66941687,228.54,228.5,136.4]
[1738164949468,14.41971687,228.54,228.5,136.4]
[1738164949665,0.25098,228.53,228.48,219.5]
[1738164949849,0.12549,228.49,228.48,219.5]
[1738164950055,0.25098,228.49,228.41,233.1259]
[1738164950356,0.12549,228.48,228.41,219.5]
[1738164950556,0.25098,228.45,228.41,136.4]
[1738164951267,10.1996,228.55,228.41,140.778]
[1738164951268,12.66941687,228.48,228.41,140.778]
[1738164951441,12.66941687,228.46,228.39,188.4]
[1738164951646,0.12549,228.44,228.39,188.4]
[1738164951847,0.25098,228.42,228.35,136.4]
[1738164952243,0.12549,228.4,228.35,136.4]
[1738164952867,0.25098,228.4,228.38,0.03]
[1738164953074,20.50246962,228.39,228.38,0.03]
[1738164953572,0.25098,228.39,228.38,0.03]
[1738164954571,0.12549,228.39,228.38,0.03]
[1738164955273,44.40484362,228.39,228.38,0.03]
[1738164955862,20.50246962,228.39,228.38,0.03]
[1738164956064,0.12549,228.39,228.38,0.03]
[1738164958071,1.7513,228.4,228.38,0.03]
[1738164958264,22.00218962,228.47,228.38,136.43]
[1738164958466,1.6443,228.5,228.39,0.43778168]
[1738164958668,20.25148962,228.49,228.39,0.43778168]
[1738164958861,0.25098,228.48,228.39,0.43778168]
[1738164959262,0.12549,228.48,228.39,30.43778168]
[1738164959774,0.12549,228.49,228.4,4.3782]
[1738164959974,20.37697962,228.49,228.4,4.3782]
[1738164960155,0.12549,228.48,228.39,0.43768925]
[1738164960359,0.12549,228.48,228.39,4.81608925]
[1738164960753,20.25148962,228.53,228.4,3.18]
[1738164960972,20.25148962,228.53,228.41,0.43763985]
[1738164961177,0.12549,228.5,228.41,0.43763985]
[1738164961755,0.12549,228.46,228.4,222.68]
[1738164962052,0.12549,228.44,228.4,222.68]
[1738164962452,20.37697962,228.47,228.4,222.68]
[1738164962771,20.25148962,228.49,228.4,222.68]
[1738164962953,20.25148962,228.47,228.4,222.68]
[1738164963370,20.50246962,228.49,228.4,222.68]
[1738164963580,20.50246962,228.49,228.4,227.0582]
[1738164963954,0.25098,228.48,228.4,227.0582]
[1738164965191,0.25098,228.48,228.4,227.0882]
[1738164965653,0.12549,228.48,228.4,227.0882]
[1738164965855,22.00198962,228.51,228.41,4.81559538]
[1738164966049,1.7505,228.51,228.41,224.31559538]
[1738164966266,0.25098,228.5,228.41,223.8779]
[1738164966477,0.25098,228.5,228.42,0.43766898]
[1738164967176,0.12549,228.5,228.43,4.3777]
[1738164967362,1.87599,228.5,228.41,223.8779]
[1738164967563,20.50246962,228.45,228.41,219.5]
[1738164967877,20.25148962,228.42,228.41,83.1]
[1738164968069,0.12549,228.43,228.41,83.1]
[1738164969365,1.87649,228.43,228.41,83.1]
[1738164970569,1.7507,228.47,228.41,83.1]
[1738164970785,20.25148962,228.5,228.42,0.43773355]
[1738164971083,4.3757,228.54,228.42,0.43773355]
[1738164971084,20.25148962,228.52,228.42,219.93773355]
[1738164971290,20.25148962,228.52,228.42,219.5]
[1738164972086,0.12549,228.49,228.42,219.5]
[1738164972277,0.12549,228.49,228.42,223.8777]
[1738164973392,1.87609,228.49,228.42,223.8777]
[1738164973593,1.87609,228.49,228.42,219.5]
[1738164974392,0.12549,228.49,228.42,223.8778]
[1738164974687,0.25098,228.5,228.43,0.43767249]
[1738164975578,0.12549,228.48,228.42,219.5]
[1738164976994,1.87619,228.48,228.42,219.5]
[1738164977498,12.64599282,228.49,228.42,219.5]
[1738164977799,14.39639282,228.51,228.43,0.43767141]
[1738164979905,0.12549,228.5,228.43,0.43767141]
[1738164980215,6.1248,228.58,228.44,34.3775]
[1738164980382,12.64599282,228.57,228.45,0.43760317]
[1738164980580,12.64599282,228.57,228.46,1.5034]
[1738164980804,12.64599282,228.57,228.47,30.43754931]
[1738164981485,12.64599282,228.55,228.47,0.43754931]
[1738164981693,0.12549,228.5,228.47,136.4]
[1738164981903,2.00168,228.48,228.47,136.4]
[1738164982216,2.00168,228.48,228.4,137.9334]
[1738164982395,0.25098,228.44,228.4,137.9334]
[1738164982722,0.12549,228.44,228.4,136.43]
[1738164982926,12.64599282,228.43,228.4,0.03]
[1738164983103,0.12549,228.42,228.4,0.03]
[1738164983918,1.87649,228.44,228.4,0.03]
[1738164984632,0.12549,228.43,228.4,0.03]
[1738164985998,1.87649,228.43,228.4,0.03]
[1738164986623,0.12549,228.41,228.4,0.03]
[1738164987831,4.3767,228.49,228.4,0.03]
[1738164987832,20.24345215,228.52,228.4,136.43]
[1738164988003,20.24345215,228.54,228.43,20.0]
[1738164988197,20.24345215,228.54,228.44,0.43765944]
[1738164988397,20.24345215,228.54,228.44,219.93765944]
[1738164988628,24.153354,228.53,228.44,219.5]
[1738164988825,0.37647,228.53,228.44,219.5]
[1738164989008,20.24345215,228.58,228.44,219.5]
[1738164989313,20.24345215,228.58,228.46,30.0]
[1738164989536,20.24345215,228.58,228.47,0.4375441]
[1738164989827,0.37647,228.57,228.47,0.4375441]
[1738164990342,2.12647,228.57,228.48,4.3767]
[1738164990627,0.37647,228.57,228.49,0.4375501]
[1738164990826,0.12549,228.57,228.49,136.8375501]
[1738164991005,0.063,228.59,228.5,6.0232]
[1738164991324,0.18849,228.59,228.51,0.437473]
[1738164991823,0.12549,228.57,228.5,7.6692]
[1738164992000,0.12549,228.55,228.5,7.6692]
[1738164992199,0.12549,228.55,228.5,1.646]
[1738164992609,0.063,228.59,228.5,2.08355117]
[1738164992813,1.8129,228.59,228.5,6.45985117]
[1738164993045,0.063,228.59,228.52,30.0]
[1738164993196,0.063,228.59,228.53,0.43744627]
[1738164994333,0.063,228.59,228.53,136.4]
[1738164994635,0.063,228.59,228.56,20.0]
[1738164994840,0.063,228.59,228.58,20.0]
[1738164995132,0.063,228.62,228.6,1.0]
[1738164995430,0.0001,228.62,228.61,24.21412159]
[1738164995634,0.03,228.66,228.65,30.0]
[1738164995834,0.03,228.66,228.65,54.21403747]
[1738164996327,0.03,228.66,228.65,34.81055347]
[1738164998053,0.03,228.66,228.63,0.43722681]
[1738164998228,0.03,228.66,228.63,136.4]
[1738164999324,0.12549,228.65,228.58,137.9571]
[1738164999530,20.49443215,228.65,228.58,136.4]
[1738164999862,20.49443215,228.65,228.56,7.5351]
[1738164999863,0.12549,228.61,228.56,139.56]
[1738165000023,0.12549,228.59,228.56,136.4]
[1738165000650,20.24345215,228.62,228.56,136.4]
[1738165000953,20.24345215,228.64,228.56,136.4]
[1738165001164,0.25098,228.59,228.56,136.4]
[1738165001327,0.25098,228.57,228.51,136.4]
[1738165001864,22.11874215,228.6,228.51,140.776]
[1738165002027,22.27345215,228.69,228.51,140.776]
[1738165002028,20.24345215,228.64,228.54,20.0]
[1738165002354,4.4028,228.69,228.54,20.0]
[1738165002355,20.27345215,228.66,228.55,0.43741256]
[1738165002647,0.25098,228.63,228.55,0.43741256]
[1738165003082,0.12549,228.61,228.54,136.4]
[1738165003224,0.25098,228.59,228.54,136.4]
[1738165003423,20.24345215,228.58,228.54,136.4]
[1738165003846,0.25098,228.57,228.49,139.56]
[1738165004154,0.25098,228.55,228.49,136.4]
[1738165004738,20.24345215,228.56,228.49,136.4]
[1738165005162,0.25098,228.55,228.49,136.4]
[1738165006165,0.12549,228.55,228.49,136.4]
[1738165007053,0.12549,228.51,228.47,51.98]
[1738165007247,20.36894215,228.5,228.45,136.4]
[1738165007452,0.12549,228.48,228.42,136.4]
[1738165007650,20.49443215,228.46,228.4,136.43]
[1738165007866,20.61992215,228.46,228.4,136.43]
[1738165008094,20.49443215,228.46,228.4,136.43]
[1738165008240,0.25098,228.45,228.4,136.43]
[1738165008954,0.25098,228.45,228.4,0.03]
[1738165009148,0.25098,228.41,228.4,0.03]
[1738165009348,20.24345215,228.44,228.4,0.03]
[1738165009550,0.37647,228.43,228.4,0.03]
[1738165009952,2.00218,228.41,228.4,0.03]
[1738165010159,0.25098,228.41,228.4,0.03]
[1738165010465,0.12549,228.41,228.4,0.03]
[1738165011268,0.25098,228.42,228.4,0.03]
[1738165011458,0.12549,228.41,228.4,0.03]
[1738165011660,44.39680615,228.41,228.4,0.03]
[1738165012062,46.14800615,228.41,228.4,0.03]
[1738165014882,44.153354,228.39,228.38,0.03]
[1738165015178,64.39680615,228.39,228.38,0.03]
[1738165015387,20.0,228.35,228.29,0.03]
[1738165015638,44.39680615,228.3,228.29,0.03]
[1738165016561,46.14880615,228.3,228.29,0.0001]
[1738165017403,47.14880615,228.3,228.29,0.0001]
[1738165017698,64.6402583,228.25,228.24,0.03]
[1738165018291,44.39680615,228.25,228.24,0.03]
[1738165018657,46.14920615,228.25,228.24,0.03]
[1738165019701,66.3926583,228.25,228.24,0.03]
[1738165020002,46.14920615,228.25,228.24,0.03]
[1738165021100,25.905754,228.25,228.24,0.03]
[1738165021475,24.153354,228.25,228.24,0.03]
[1738165021982,8.5081,228.34,228.24,0.03]
[1738165021983,20.24345215,228.29,228.24,0.03]
[1738165022188,21.99525215,228.33,228.24,0.03]
[1738165022508,0.12549,228.28,228.24,136.43]
[1738165022683,20.49443215,228.25,228.24,0.03]
[1738165023008,44.39680615,228.25,228.24,0.03]
[1738165023389,24.153354,228.25,228.24,0.03]
[1738165023891,46.14920615,228.25,228.24,0.03]
[1738165025217,66.3926583,228.25,228.24,0.03]
[1738165025581,46.14920615,228.25,228.24,0.03]
[1738165026212,68.9139583,228.25,228.24,0.0001]
[1738165029092,69.9139583,228.25,228.24,0.0001]
[1738165029510,68.9139583,228.25,228.24,0.0001]
[1738165029685,67.9139583,228.25,228.24,0.0001]
[1738165030108,47.67050615,228.25,228.24,0.0001]
[1738165030414,67.9139583,228.25,228.24,0.0001]
[1738165030710,68.9139583,228.25,228.24,0.0001]
[1738165030912,69.9139583,228.25,228.24,0.0001]
[1738165031684,21.37647,228.22,228.21,0.0001]
[1738165032012,20.37647,228.18,228.17,0.03]
[1738165032225,64.39680615,228.18,228.17,0.03]
[1738165032399,66.14980615,228.18,228.17,0.03]
[1738165032584,24.153354,228.17,228.16,0.03]
[1738165032785,45.39680615,228.17,228.15,0.063]
[1738165033309,44.153354,228.13,228.12,0.063]
[1738165034299,24.153354,228.12,228.05,0.03]
[1738165034511,44.39680615,228.12,228.05,0.03]
[1738165036217,0.37647,228.11,228.05,0.03]
[1738165036419,25.906854,228.11,228.05,0.03]
[1738165036999,26.906854,228.11,228.05,0.03]
[1738165037314,25.906854,228.11,228.05,0.03]
[1738165037517,46.15030615,228.11,228.05,0.03]
[1738165037714,25.906854,228.11,228.05,0.03]
[1738165038134,46.15030615,228.11,228.05,0.03]
[1738165038331,25.906854,228.11,228.05,0.03]
[1738165038921,24.153354,228.11,228.05,136.43]
[1738165039100,44.39680615,228.11,228.05,136.43]
[1738165039424,20.24345215,228.16,228.1,136.463]
[1738165039635,20.24345215,228.19,228.1,140.8469]
[1738165039812,20.24345215,228.2,228.1,140.8469]
[1738165040323,0.12549,228.17,228.1,140.8469]
[1738165041425,21.99625215,228.2,228.1,140.8469]
[1738165041631,21.99615215,228.22,228.11,1.5947]
[1738165041931,24.153354,228.21,228.11,137.9947]
[1738165042298,0.25098,228.18,228.11,137.9947]
[1738165042498,0.12549,228.15,228.11,137.9947]
[1738165042737,0.12549,228.15,228.11,1.5947]
[1738165043226,20.49443215,228.16,228.11,1.5947]
[1738165043439,20.24345215,228.18,228.12,4.3836]
[1738165043738,0.25098,228.17,228.12,4.3836]
[1738165043930,0.12549,228.16,228.11,1.5947]
[1738165044300,0.25098,228.17,228.11,5.9784]
[1738165044705,0.12549,228.18,228.11,5.9784]
[1738165045010,0.25098,228.19,228.11,5.9784]
[1738165045213,20.24345215,228.22,228.11,172.81666435]
[1738165045431,21.99565215,228.28,228.15,4.383]
[1738165045612,21.99565215,228.28,228.16,0.43813335]
[1738165045930,0.12549,228.27,228.16,0.43813335]
[1738165046311,24.153354,228.27,228.16,0.43813335]
[1738165046819,24.153354,228.27,228.17,4.3826]
[1738165047008,24.153354,228.27,228.18,0.43814159]
[1738165047715,0.063,228.29,228.2,1.561]
[1738165047917,0.063,228.29,228.21,0.43807773]
[1738165048119,0.43947,228.29,228.21,3.16]
[1738165048432,2.19157,228.29,228.21,3.16]
[1738165048811,0.43947,228.29,228.21,7.5418]
[1738165049310,2.19157,228.29,228.21,3.16]
[1738165049737,2.19157,228.29,228.21,7.5419]
[1738165050039,0.12549,228.25,228.2,137.961]
[1738165050205,0.25098,228.23,228.2,137.961]
[1738165050407,0.12549,228.22,228.2,136.4]
[1738165050625,20.36894215,228.22,228.16,136.43]
[1738165050819,0.25098,228.19,228.16,136.43]
[1738165051549,20.36894215,228.18,228.16,0.03]
[1738165051739,23.902374,228.17,228.16,0.03]
[1738165052114,24.153354,228.17,228.16,0.03]
[1738165052725,20.37647,228.11,228.1,0.063]
[1738165053009,66.15030615,228.11,228.1,0.063]
[1738165054212,24.153354,228.11,228.1,0.063]
[1738165054537,20.24345215,228.17,228.1,0.063]
[1738165054732,20.24345215,228.17,228.1,136.463]
[1738165054919,24.153354,228.16,228.1,136.463]
[1738165056040,0.25098,228.16,228.1,4.447]
[1738165056419,20.24345215,228.23,228.1,140.847]
[1738165056736,20.24345215,228.25,228.11,0.43830119]
[1738165056906,1.7525,228.24,228.13,4.3834]
[1738165057107,21.99595215,228.25,228.14,0.4381902]
[1738165057319,0.37647,228.24,228.14,136.8381902]
[1738165057518,20.24345215,228.27,228.14,136.4]
[1738165057735,1.7522,228.28,228.14,166.4]
[1738165058240,0.37647,228.27,228.17,20.0]
[1738165058534,0.25098,228.27,228.17,21.5049]
[1738165058834,20.30645215,228.29,228.17,1.5049]
[1738165058835,42.37252215,228.23,228.17,1.5049]
[1738165059342,20.49443215,228.19,228.14,136.4]
[1738165060021,0.25098,228.16,228.14,136.4]
[1738165060339,0.25098,228.16,228.12,142.6512]
[1738165060738,0.12549,228.15,228.1,136.463]
[1738165060926,0.25098,228.11,228.1,136.463]
[1738165061126,0.25098,228.11,228.1,0.063]
[1738165061127,44.39680615,228.11,228.1,0.063]
[1738165062317,43.89680615,228.11,228.1,0.063]
[1738165064342,44.14778615,228.11,228.1,0.063]
[1738165064717,0.37647,228.11,228.1,0.063]
[1738165065542,0.25098,228.11,228.1,0.063]
[1738165066220,0.12549,228.14,228.1,0.063]
[1738165066829,24.153354,228.14,228.1,0.063]
[1738165067049,24.153354,228.12,228.1,0.063]
[1738165067340,44.14582615,228.11,228.1,0.063]
[1738165067550,23.902374,228.11,228.1,0.063]
[1738165067923,21.99665215,228.15,228.1,0.063]
[1738165068344,20.24345215,228.17,228.1,0.063]
[1738165068525,0.37647,228.11,228.1,0.063]
[1738165069944,2.12997,228.11,228.1,0.063]
[1738165070456,0.25098,228.11,228.1,0.063]
[1738165070660,20.0,228.13,228.1,0.063]
[1738165070945,20.24345215,228.16,228.1,0.063]
[1738165071134,23.902374,228.15,228.1,0.063]
[1738165071747,25.655874,228.11,228.1,0.063]
[1738165071949,1.7535,228.11,228.1,0.063]
[1738165072154,1.7534,228.13,228.1,0.063]
[1738165072658,0.25098,228.11,228.1,0.063]
[1738165075547,20.0,228.15,228.1,0.063]
[1738165076759,0.063,228.16,228.1,0.063]
[1738165076941,20.0,228.15,228.1,136.463]
[1738165078064,46.15010615,228.14,228.1,136.463]
[1738165078564,25.906654,228.14,228.1,136.463]
[1738165078866,20.0,228.15,228.1,136.463]
[1738165079047,0.37647,228.15,228.1,140.8469]
[1738165079558,0.063,228.16,228.1,140.8469]
[1738165080069,0.063,228.16,228.13,6.6068]
[1738165080242,0.063,228.16,228.13,7.04503321]
[1738165080442,0.063,228.16,228.13,6.6068]
[1738165080765,1.8161,228.16,228.1,219.563]
[1738165080965,24.153354,228.12,228.1,0.063]
[1738165081339,1.8161,228.16,228.1,0.063]
[1738165081658,20.24345215,228.15,228.1,0.063]
[1738165081859,25.906654,228.14,228.1,0.063]
[1738165082246,0.37647,228.14,228.1,0.063]
[1738165082751,0.25098,228.14,228.1,0.063]
[1738165083172,2.00428,228.14,228.1,0.063]
[1738165083337,25.781164,228.14,228.1,0.063]
[1738165084359,0.063,228.15,228.1,136.463]
[1738165084659,0.063,228.15,228.12,6.6335]
[1738165084960,0.063,228.15,228.14,1.5759]
[1738165085843,0.063,228.15,228.12,6.6335]
[1738165086362,0.063,228.15,228.1,136.463]
[1738165086665,0.063,228.15,228.1,140.847]
[1738165088663,0.063,228.15,228.11,0.43828665]
[1738165088847,0.063,228.15,228.14,20.0]
[1738165089159,0.063,228.15,228.14,239.93816972]
[1738165089360,0.063,228.15,228.14,239.5]
[1738165090469,0.063,228.16,228.15,30.0]
[1738165090688,0.063,228.16,228.15,249.93808778]
[1738165090861,0.063,228.24,228.18,50.0]
[1738165091063,0.063,228.24,228.19,0.43806017]
[1738165091248,0.063,228.24,228.2,4.7051]
[1738165091443,0.063,228.24,228.21,0.43803059]
[1738165091867,0.063,228.24,228.21,30.43803059]
[1738165092277,0.063,228.24,228.21,0.43803059]
[1738165092471,0.063,228.24,228.23,20.0]
[1738165092777,0.063,228.24,228.23,20.43801721]
[1738165093155,0.063,228.24,228.23,156.83801721]
[1738165093357,0.063,228.24,228.23,156.4]
[1738165094664,0.063,228.24,228.23,160.7815]
[1738165095554,0.063,228.24,228.23,243.8815]
[1738165096078,0.063,228.24,228.23,136.4]
[1738165096674,0.063,228.24,228.2,136.4]
[1738165099183,0.063,228.24,228.2,140.782]
[1738165100048,0.063,228.24,228.21,0.43811487]
[1738165101158,0.063,228.24,228.23,20.0]
[1738165101360,0.063,228.24,228.23,20.43802149]
[1738165102281,0.063,228.24,228.23,244.31952149]
[1738165102459,0.0001,228.24,228.23,244.8815]
[1738165102657,0.0001,228.24,228.23,243.8815]
[1738165103073,0.0001,228.24,228.23,219.5]
[1738165104185,0.0001,228.24,228.18,136.4]
[1738165104390,25.780464,228.24,228.18,136.4]
[1738165104770,20.24345215,228.23,228.18,136.4]
[1738165105075,25.780464,228.24,228.18,136.4]
[1738165107485,25.780464,228.24,228.16,4.3828]
[1738165107486,0.25098,228.21,228.16,136.4]
[1738165107671,20.24345215,228.21,228.16,136.4]
[1738165108284,24.027864,228.18,228.16,136.4]
[1738165108477,20.24345215,228.19,228.13,188.46]
[1738165109055,24.153354,228.18,228.13,52.06]
[1738165109263,24.027864,228.18,228.13,52.06]
[1738165109985,25.780864,228.18,228.13,52.06]
[1738165110288,20.36894215,228.17,228.13,52.06]
[1738165110474,24.027864,228.16,228.13,52.06]
[1738165111574,20.24345215,228.19,228.13,52.06]
[1738165111775,21.99635215,228.19,228.13,52.06]
[1738165111982,24.027864,228.18,228.13,52.06]
[1738165112984,24.027864,228.16,228.13,52.06]
[1738165113294,0.12549,228.15,228.1,136.463]
[1738165113593,0.12549,228.15,228.1,0.063]
[1738165113899,20.24345215,228.17,228.1,0.063]
[1738165114070,6.5895,228.19,228.1,4.4469]
[1738165114071,21.99635215,228.19,228.1,4.4469]
[1738165114493,24.027864,228.18,228.1,24.4469]
[1738165115285,24.027864,228.16,228.1,0.063]
[1738165115591,24.027864,228.16,228.1,136.463]
[1738165115891,0.25098,228.16,228.1,136.463]
[1738165116070,1.5167,228.2,228.1,140.8469]
[1738165116071,3.2696,228.2,228.1,140.8469]
[1738165116391,24.153354,228.17,228.1,219.563]
[1738165116586,0.25098,228.15,228.1,219.563]
[1738165116974,24.027864,228.13,228.1,219.563]
[1738165117977,0.25098,228.13,228.1,219.563]
[1738165118691,0.37647,228.11,228.1,0.063]
[1738165118900,24.153354,228.11,228.1,0.063]
[1738165119391,25.906854,228.11,228.1,0.063]
[1738165120107,24.027864,228.11,228.1,0.063]
[1738165120401,20.24345215,228.14,228.1,0.063]
[1738165120590,36.84139355,228.13,228.1,0.063]
[1738165121387,24.027864,228.11,228.1,0.063]
[1738165121585,36.71590355,228.11,228.1,0.063]
[1738165122108,24.027864,228.11,228.1,0.063]
[1738165122482,32.68803955,228.15,228.1,0.063]
[1738165122802,7.5956,228.2,228.1,0.063]
[1738165122803,12.68803955,228.17,228.1,136.463]
[1738165122993,24.153354,228.16,228.1,136.463]
[1738165123208,12.93901955,228.11,228.1,0.063]
[1738165123375,14.81800955,228.11,228.1,0.063]
[1738165123881,12.68803955,228.15,228.1,0.063]
[1738165124389,24.027864,228.14,228.1,0.063]
[1738165124789,0.25098,228.12,228.1,0.063]
[1738165125295,2.12997,228.11,228.1,0.063]
[1738165125503,58.59489355,228.11,228.1,0.063]
[1738165135485,12.68803955,228.13,228.1,0.063]
[1738165135903,12.81352955,228.11,228.1,0.063]
[1738165136109,14.56702955,228.11,228.1,0.063]
[1738165136809,38.59489355,228.11,228.1,0.063]